fUST/lending_fUST_20240225
["ID","MTS","AMOUNT","RATE_DAILY","PERIOD"]
[315058385,1708795839024,-1746.71673402,0.0001931,2]
[315058386,1708795839033,-500.0,0.0001931,2]
[315058387,1708795839043,-500.0,0.0001931,2]
[315058388,1708795839053,-500.0,0.0001931,2]
[315058389,1708795839063,-500.0,0.0001931,2]
[315058390,1708795839071,-1746.71673402,0.0001931,2]
[315058391,1708795839080,-500.0,0.0001931,2]
[315058392,1708795839090,-500.0,0.0001931,2]
[315058393,1708795839099,-500.0,0.0001931,2]
[315058394,1708795839108,-1746.71673402,0.0001931,2]
[315058395,1708795839118,-500.0,0.0001931,2]
[315058396,1708795839129,-500.0,0.0001931,2]
[315058397,1708795839139,-500.0,0.0001931,2]
[315058398,1708795839148,-1746.71673402,0.0001931,2]
[315058399,1708795839158,-500.0,0.0001931,2]
[315058400,1708795839167,-500.0,0.0001931,2]
[315058401,1708795839176,-1746.71673402,0.0001931,2]
[315058402,1708795839186,-500.0,0.0001931,2]
[315058403,1708795839194,-1746.71673402,0.0001931,2]
[315058404,1708795839203,-500.0,0.0001931,2]
[315058405,1708795839212,-500.0,0.0001931,2]
[315058406,1708795839221,-500.0,0.0001931,2]
[315058407,1708795839230,-500.0,0.0001931,2]
[315058408,1708795839240,-1746.71673402,0.0001931,2]
[315058409,1708795839250,-500.0,0.0001931,2]
[315058410,1708795839259,-500.0,0.0001931,2]
[315058411,1708795839268,-500.0,0.0001931,2]
[315058412,1708795839277,-1746.71673402,0.0001931,2]
[315058413,1708795839287,-500.0,0.0001931,2]
[315058414,1708795839297,-500.0,0.0001931,2]
[315058415,1708795839307,-1746.71673402,0.0001931,2]
[315058416,1708795839316,-500.0,0.0001931,2]
[315058417,1708795839325,-500.0,0.0001931,2]
[315058418,1708795839335,-500.0,0.0001931,2]
[315058419,1708795839343,-1746.71673402,0.0001931,2]
[315058420,1708795839352,-500.0,0.0001931,2]
[315058421,1708795839363,-500.0,0.0001931,2]
[315058422,1708795839372,-500.0,0.0001931,2]
[315058423,1708795839380,-500.0,0.0001931,2]
[315058424,1708795839389,-1746.71673402,0.0001931,2]
[315058425,1708795839399,-500.0,0.0001931,2]
[315058426,1708795839408,-485.28939424,0.0001931,2]
[315058427,1708795839416,-500.0,0.0001931,2]
[315058428,1708795839425,-1746.71673402,0.0001931,2]
[315058429,1708795839434,-500.0,0.0001931,2]
[315058430,1708795839442,-1746.71673402,0.0001931,2]
[315058431,1708795839452,-500.0,0.0001931,2]
[315058432,1708795839460,-1746.71673402,0.0001931,2]
[315058433,1708795839471,-500.0,0.0001931,2]
[315058434,1708795839480,-500.0,0.0001931,2]
[315058435,1708795839489,-500.0,0.0001931,2]
[315058436,1708795839499,-1746.71673402,0.0001931,2]
[315058437,1708795839507,-500.0,0.0001931,2]
[315058438,1708795839517,-500.0,0.0001931,2]
[315058439,1708795839526,-500.0,0.0001931,2]
[315058440,1708795839535,-1746.71673402,0.0001931,2]
[315058441,1708795839545,-500.0,0.0001931,2]
[315058442,1708795839554,-500.0,0.0001931,2]
[315058443,1708795839563,-500.0,0.0001931,2]
[315058444,1708795839572,-500.0,0.0001931,2]
[315058445,1708795839582,-1746.71673402,0.0001931,2]
[315058446,1708795839602,-429.93653303,0.0001931,2]
[315058447,1708795839625,-500.0,0.0001931,2]
[315058448,1708795839634,-500.0,0.0001931,2]
[315058449,1708795839643,-1746.71673402,0.0001931,2]
[315058450,1708795839652,-500.0,0.0001931,2]
[315058451,1708795839661,-500.0,0.0001931,2]
[315058452,1708795839670,-500.0,0.0001931,2]
[315058453,1708795839680,-1746.71673402,0.0001931,2]
[315058454,1708795839689,-500.0,0.0001931,2]
[315058455,1708795839699,-500.0,0.0001931,2]
[315058456,1708795839708,-1746.71673402,0.0001931,2]
[315058457,1708795839718,-500.0,0.0001931,2]
[315058458,1708795839728,-1746.71673402,0.0001931,2]
[315058459,1708795839738,-500.0,0.0001931,2]
[315058460,1708795839747,-500.0,0.0001931,2]
[315058461,1708795839757,-500.0,0.0001931,2]
[315058462,1708795839767,-1746.71673402,0.0001931,2]
[315058463,1708795839779,-500.0,0.0001931,2]
[315058464,1708795839790,-1746.71673402,0.0001931,2]
[315058465,1708795839799,-485.33416115,0.0001931,2]
[315058466,1708795839815,-500.0,0.0001931,2]
[315058467,1708795839824,-1746.71673402,0.0001931,2]
[315058468,1708795839834,-500.0,0.0001931,2]
[315058469,1708795839843,-1746.71673402,0.0001931,2]
[315058470,1708795839855,-500.0,0.0001931,2]
[315058471,1708795839864,-1746.71673402,0.0001931,2]
[315058472,1708795839873,-500.0,0.0001931,2]
[315058473,1708795839883,-1746.71673402,0.0001931,2]
[315058474,1708795839892,-1746.71673402,0.0001931,2]
[315058475,1708795839901,-500.0,0.0001931,2]
[315058476,1708795839910,-500.0,0.0001931,2]
[315058477,1708795839918,-500.0,0.0001931,2]
[315058478,1708795839927,-1746.71673402,0.0001931,2]
[315058479,1708795839936,-500.0,0.0001931,2]
[315058480,1708795839946,-1746.71673402,0.0001931,2]
[315058481,1708795839954,-500.0,0.0001931,2]
[315058482,1708795839964,-500.0,0.0001931,2]
[315058483,1708795839973,-500.0,0.0001931,2]
[315058484,1708795839982,-500.0,0.0001931,2]
[315058485,1708795839992,-1746.71673402,0.0001931,2]
[315058486,1708795840001,-543.41003538,0.0001931,2]
[315058487,1708795840011,-500.0,0.0001931,2]
[315058488,1708795840019,-1746.71673402,0.0001931,2]
[315058489,1708795840028,-1746.71673402,0.0001931,2]
[315058490,1708795840037,-1746.71673402,0.0001931,2]
[315058491,1708795840046,-1746.71673402,0.0001931,2]
[315058492,1708795840056,-1746.71673402,0.0001931,2]
[315058493,1708795840065,-1746.71673402,0.0001931,2]
[315058494,1708795840074,-1746.71673402,0.0001931,2]
[315058495,1708795840083,-1746.71673402,0.0001931,2]
[315058496,1708795840092,-1746.71673402,0.0001931,2]
[315058497,1708795840100,-1746.71673402,0.0001931,2]
[315058498,1708795840109,-1746.71673402,0.0001931,2]
[315058499,1708795840118,-1746.71673402,0.0001931,2]
[315058500,1708795840127,-1746.71673402,0.0001931,2]
[315058501,1708795840136,-1746.71673402,0.0001931,2]
[315058502,1708795840146,-1746.71673402,0.0001931,2]
[315058503,1708795840155,-1746.71673402,0.0001931,2]
[315058504,1708795840164,-1746.71673402,0.0001931,2]
[315058505,1708795840173,-1746.71673402,0.0001931,2]
[315058506,1708795840182,-1746.71673402,0.0001931,2]
[315058507,1708795840191,-1746.71673402,0.0001931,2]
[315058508,1708795840200,-500.0,0.0001931,2]
[315058509,1708795840209,-1746.71673402,0.0001931,2]
[315058510,1708795840218,-1746.71673402,0.0001931,2]
[315058511,1708795840227,-1746.71673402,0.0001931,2]
[315058512,1708795840236,-1746.71673402,0.0001931,2]
[315058514,1708795840246,-1746.71673402,0.0001931,2]
[315058515,1708795840254,-1746.71673402,0.0001931,2]
[315058516,1708795840263,-1746.71673402,0.0001931,2]
[315058517,1708795840272,-1746.71673402,0.0001931,2]
[315058518,1708795840281,-1746.71673402,0.0001931,2]
[315058519,1708795840289,-1746.71673402,0.0001931,2]
[315058520,1708795840299,-500.0,0.0001931,2]
[315058521,1708795840310,-500.0,0.0001931,2]
[315058522,1708795840319,-300.0,0.0001931,2]
[315058523,1708795840328,-500.0,0.0001931,2]
[315058524,1708795840338,-500.0,0.0001931,2]
[315058525,1708795840347,-1703.04881566,0.0001931,2]
[315058526,1708795840355,-1703.04881566,0.0001931,2]
[315058527,1708795840364,-1703.04881566,0.0001931,2]
[315058528,1708795840372,-1703.04881566,0.0001931,2]
[315058529,1708795840381,-1703.04881566,0.0001931,2]
[315058530,1708795840390,-1703.04881566,0.0001931,2]
[315058531,1708795840398,-1703.04881566,0.0001931,2]
[315058532,1708795840406,-1703.04881566,0.0001931,2]
[315058533,1708795840414,-1703.04881566,0.0001931,2]
[315058534,1708795840423,-1703.04881566,0.0001931,2]
[315058535,1708795840432,-1703.04881566,0.0001931,2]
[315058536,1708795840440,-1703.04881566,0.0001931,2]
[315058537,1708795840450,-1703.04881566,0.0001931,2]
[315058538,1708795840458,-1703.04881566,0.0001931,2]
[315058539,1708795840467,-1703.04881566,0.0001931,2]
[315058540,1708795840475,-1703.04881566,0.0001931,2]
[315058541,1708795840483,-1703.04881566,0.0001931,2]
[315058542,1708795840491,-1703.04881566,0.0001931,2]
[315058543,1708795840500,-1703.04881566,0.0001931,2]
[315058544,1708795840508,-1703.04881566,0.0001931,2]
[315058545,1708795840517,-1703.04881566,0.0001931,2]
[315058546,1708795840526,-1703.04881566,0.0001931,2]
[315058547,1708795840536,-1703.04881566,0.0001931,2]
[315058548,1708795840546,-500.0,0.0001931,2]
[315058549,1708795840555,-1703.04881556,0.0001931,2]
[315058550,1708795840564,-500.0,0.0001931,2]
[315058551,1708795840572,-500.0,0.0001931,2]
[315058552,1708795840581,-500.0,0.0001931,2]
[315058553,1708795840590,-254.14085988,0.0001931,2]
[315058554,1708795840598,-12317.20770288,0.00019327,2]
[315058555,1708795840607,-501.76,0.00019451,2]
[315058556,1708795840616,-500.0,0.00019452,2]
[315058557,1708795840625,-500.0,0.00019452,2]
[315058558,1708795840634,-500.0,0.00019452,2]
[315058559,1708795840643,-500.0,0.00019452,2]
[315058560,1708795840652,-500.0,0.00019452,2]
[315058561,1708795840660,-664.77,0.00019452,2]
[315058562,1708795840669,-500.0,0.00019452,2]
[315058563,1708795840678,-500.0,0.00019452,2]
[315058564,1708795840687,-568.03,0.00019452,2]
[315058565,1708795840696,-500.0,0.00019452,2]
[315058566,1708795840705,-500.0,0.00019452,2]
[315058567,1708795840713,-500.0,0.00019452,2]
[315058568,1708795840722,-500.0,0.00019452,2]
[315058569,1708795840731,-500.0,0.00019452,2]
[315058570,1708795840740,-1040.7,0.00019452,2]
[315058571,1708795840749,-500.0,0.00019452,2]
[315058572,1708795840758,-500.0,0.00019452,2]
[315058573,1708795840766,-500.0,0.00019452,2]
[315058574,1708795840781,-500.0,0.00019452,2]
[315058575,1708795840790,-523.98,0.00019452,2]
[315058576,1708795840799,-500.0,0.00019452,2]
[315058577,1708795840813,-559.01,0.00019452,2]
[315058578,1708795840823,-5180.42,0.00019452,2]
[315058579,1708795840832,-500.0,0.00019452,2]
[315058580,1708795840841,-2105.85,0.00019452,2]
[315058581,1708795840849,-500.0,0.00019452,2]
[315058582,1708795840858,-500.0,0.00019452,2]
[315058583,1708795840868,-574.41,0.00019452,2]
[315058584,1708795840876,-500.0,0.00019452,2]
[315058585,1708795840887,-988.57,0.00019452,2]
[315058586,1708795840896,-884.03,0.00019452,2]
[315058587,1708795840905,-1680.18,0.00019452,2]
[315058588,1708795840913,-644.04663569,0.00019452,2]
[315058589,1708795840922,-500.0,0.00019452,2]
[315058590,1708795840931,-1048.88,0.00019452,2]
[315058591,1708795840940,-753.75,0.00019452,2]
[315058592,1708795840949,-625.5,0.00019452,2]
[315058593,1708795840958,-789.41,0.00019452,2]
[315058594,1708795840967,-7011.49,0.00019452,2]
[315058595,1708795840976,-1712.0,0.00019452,2]
[315058596,1708795840984,-1157.05,0.00019452,2]
[315058597,1708795840993,-7420.08,0.00019452,2]
[315058598,1708795841002,-500.0,0.00019452,2]
[315058599,1708795841011,-1684.0,0.00019452,2]
[315058600,1708795841020,-500.0,0.00019452,2]
[315058601,1708795841030,-507.05,0.00019452,2]
[315058603,1708795841038,-500.0,0.00019452,2]
[315058605,1708795841047,-1388.78,0.00019452,2]
[315058607,1708795841057,-500.0,0.00019452,2]
[315058608,1708795841066,-672.32,0.00019452,2]
[315058609,1708795841075,-500.0,0.00019452,2]
[315058610,1708795841084,-666.34,0.00019452,2]
[315058612,1708795841092,-307.42899316,0.00019452,2]
[315058613,1708795841101,-1013.23,0.00019452,2]
[315058614,1708795841110,-719.96,0.00019452,2]
[315058615,1708795841118,-788.01,0.00019452,2]
[315058616,1708795841127,-500.0,0.00019452,2]
[315058617,1708795841136,-4268.62,0.00019452,2]
[315058620,1708795841237,-185.54660767,0.00019466,2]
[315058621,1708795841246,-185.54660767,0.00019471,2]
[315058622,1708795841255,-185.54660767,0.00019489,2]
[315058623,1708795841264,-166.666666,0.00019627,2]
[315058624,1708795841273,-501.76,0.00019675,2]
[315058625,1708795841282,-501.76,0.00019725,2]
[315058626,1708795841291,-330.83494144,0.00019726,2]
[315058627,1708795841300,-500.0,0.00019726,2]
[315058628,1708795841310,-500.0,0.00019726,2]
[315058629,1708795841320,-664.77,0.00019726,2]
[315058630,1708795841328,-500.0,0.00019726,2]
[315058631,1708795841337,-506.51,0.00019726,2]
[315058632,1708795841346,-568.03,0.00019726,2]
[315058633,1708795841355,-500.0,0.00019726,2]
[315058634,1708795841364,-500.0,0.00019726,2]
[315058635,1708795841372,-500.0,0.00019726,2]
[315058636,1708795841381,-500.0,0.00019726,2]
[315058637,1708795841390,-1040.7,0.00019726,2]
[315058638,1708795841398,-500.0,0.00019726,2]
[315058639,1708795841407,-500.0,0.00019726,2]
[315058640,1708795841416,-523.98,0.00019726,2]
[315058641,1708795841424,-5180.42,0.00019726,2]
[315058642,1708795841433,-2105.85,0.00019726,2]
[315058643,1708795841442,-584.79063266,0.00019726,2]
[315058644,1708795841450,-988.57,0.00019726,2]
[315058645,1708795841459,-884.03,0.00019726,2]
[315058646,1708795841468,-1680.18,0.00019726,2]
[315058647,1708795841477,-500.0,0.00019726,2]
[315058648,1708795841486,-1048.88,0.00019726,2]
[315058649,1708795841495,-753.75,0.00019726,2]
[315058650,1708795841504,-625.5,0.00019726,2]
[315058651,1708795841513,-789.41,0.00019726,2]
[315058652,1708795841522,-7011.49,0.00019726,2]
[315058653,1708795841531,-1712.0,0.00019726,2]
[315058654,1708795841541,-1157.05,0.00019726,2]
[315058655,1708795841550,-7420.08,0.00019726,2]
[315058656,1708795841560,-1684.0,0.00019726,2]
[315058657,1708795841569,-500.0,0.00019726,2]
[315058658,1708795841578,-507.05,0.00019726,2]
[315058659,1708795841587,-500.0,0.00019726,2]
[315058660,1708795841596,-1388.78,0.00019726,2]
[315058661,1708795841605,-500.0,0.00019726,2]
[315058662,1708795841615,-672.32,0.00019726,2]
[315058663,1708795841624,-500.0,0.00019726,2]
[315058664,1708795841633,-666.34,0.00019726,2]
[315058665,1708795841642,-1013.23,0.00019726,2]
[315058666,1708795841651,-719.96,0.00019726,2]
[315058667,1708795841660,-788.01,0.00019726,2]
[315058668,1708795841669,-500.0,0.00019726,2]
[315058669,1708795841678,-62531.00916082,0.000199,2]
[315058670,1708795841688,-501.76,0.00019999,2]
[315058671,1708795841696,-2000.0,0.0002,2]
[315058672,1708795841705,-500.0,0.0002,2]
[315058673,1708795841714,-500.0,0.0002,2]
[315058674,1708795841723,-664.77,0.0002,2]
[315058675,1708795841732,-151.51515152,0.0002,2]
[315058676,1708795841742,-482.68,0.0002,2]
[315058677,1708795841751,-568.03,0.0002,2]
[315058678,1708795841760,-500.0,0.0002,2]
[315058679,1708795841770,-500.0,0.0002,2]
[315058680,1708795841779,-500.0,0.0002,2]
[315058681,1708795841788,-630.45135169,0.0002,2]
[315058682,1708795841797,-1040.7,0.0002,2]
[315058683,1708795841809,-500.0,0.0002,2]
[315058684,1708795841818,-500.0,0.0002,2]
[315058685,1708795841827,-523.98,0.0002,2]
[315058686,1708795841836,-5180.42,0.0002,2]
[315058687,1708795841846,-2105.85,0.0002,2]
[315058688,1708795841856,-988.57,0.0002,2]
[315058689,1708795841865,-884.03,0.0002,2]
[315058690,1708795841874,-1680.18,0.0002,2]
[315058691,1708795841884,-557.64745766,0.0002,2]
[315058692,1708795841894,-1048.88,0.0002,2]
[315058693,1708795841903,-987.0,0.0002,4]
[315058694,1708795841912,-753.75,0.0002,2]
[315058695,1708795841921,-625.5,0.0002,2]
[315058696,1708795841931,-789.41,0.0002,2]
[315058697,1708795841940,-7011.49,0.0002,2]
[315058698,1708795841949,-541.0,0.0002,4]
[315058699,1708795841958,-1712.0,0.0002,2]
[315058700,1708795841968,-1157.05,0.0002,2]
[315058701,1708795841977,-7420.08,0.0002,2]
[315058702,1708795841987,-1684.0,0.0002,2]
[315058703,1708795841996,-500.0,0.0002,2]
[315058704,1708795842006,-507.05,0.0002,2]
[315058705,1708795842015,-500.0,0.0002,2]
[315058706,1708795842024,-792.64185061,0.0002,4]
[315058707,1708795842033,-1388.78,0.0002,2]
[315058708,1708795842043,-500.0,0.0002,2]
[315058709,1708795842052,-672.32,0.0002,2]
[315058710,1708795842062,-500.0,0.0002,2]
[315058711,1708795842072,-666.34,0.0002,2]
[315058712,1708795842081,-1013.23,0.0002,2]
[315058713,1708795842091,-719.96,0.0002,2]
[315058714,1708795842101,-788.01,0.0002,2]
[315058715,1708795842110,-500.0,0.0002,2]
[315058716,1708795842121,-153.0,0.0002,2]
[315058717,1708795842130,-153.0,0.0002,2]
[315058718,1708795842140,-153.0,0.0002,2]
[315058719,1708795842150,-501.76,0.00020036,2]
[315058720,1708795842160,-501.76,0.00020036,2]
[315058721,1708795842169,-501.76,0.00020036,2]
[315058722,1708795842178,-501.76,0.00020036,2]
[315058723,1708795842187,-501.76,0.0002004,2]
[315058724,1708795842198,-166.666666,0.00020076,2]
[315058725,1708795842207,-501.76,0.0002009,2]
[315058726,1708795842216,-501.76,0.0002009,2]
[315058727,1708795842226,-501.76,0.0002009,2]
[315058728,1708795842236,-501.76,0.0002009,2]
[315058729,1708795842245,-501.76,0.0002009,2]
[315058730,1708795842254,-501.97,0.0002009,2]
[315058731,1708795842263,-2874.92568723,0.000201,2]
[315058732,1708795842273,-80906.5093211,0.00020124,2]
[315058733,1708795842282,-50000.0,0.00020164,2]
[315058734,1708795842291,-37993.31019062,0.000202,2]
[315058735,1708795842300,-750.0,0.000202,2]
[315058736,1708795842311,-50000.0,0.0002021,2]
[315058737,1708795842319,-50000.0,0.00020212,2]
[315058738,1708795842328,-50000.0,0.00020214,2]
[315058739,1708795842337,-30841.00548266,0.00020214,2]
[315058740,1708795842354,-3122.47221082,0.00020214,2]
[315058741,1708795842380,-672.68140241,0.00020214,2]
[315058742,1708795842391,-10549.48628499,0.00020214,2]
[315058794,1708795843226,-156.89421406,0.00019078,2]
[315058796,1708795843235,-445.7235121,0.00019726,2]
[315058799,1708795843247,-3822.8964879,0.00019726,2]
[315058801,1708795843256,-4268.62,0.0002,2]
[315058803,1708795843264,-59598.52795895,0.00020114,3]
[315058806,1708795843284,-268.1535,0.00020114,3]
[315058808,1708795843294,-461.40860618,0.00020114,3]
[315058837,1708795846202,-500.0,0.0001931,2]
[315058838,1708795846212,-500.0,0.0001931,2]
[315058839,1708795846221,-2.56404631,0.0001931,2]
[315058849,1708795850476,2571.522718,0.0001825,2]
[315058852,1708795934101,171.824104,0.00018092,2]
[315058855,1708796148536,23952.497585,0.00018192,2]
[315058856,1708796152762,2834.9470373,0.00018192,2]
[315058857,1708796305364,2317.1882869,0.00018211,2]
[315058858,1708796335549,1380.0426278,0.00018211,2]
[315058860,1708796813126,-281.345214,0.00018692,2]
[315058861,1708796813148,-704.04980982,0.00018692,2]
[315058862,1708796813170,-1590.93037397,0.00018693,2]
[315058863,1708796813191,-619.1446173,0.00018696,2]
[315058864,1708796813211,-883.45953835,0.000189,2]
[315058865,1708796813231,-155.0,0.00019,2]
[315058866,1708796813252,-154.98450155,0.00019,2]
[315058867,1708796813273,-300.0,0.00019177,2]
[315058868,1708796813293,-500.0,0.00019178,2]
[315058869,1708796813314,-590.33,0.00019178,2]
[315058870,1708796813334,-400.26781543,0.00019178,2]
[315058871,1708796813356,-500.0,0.00019178,2]
[315058872,1708796813376,-461.955112,0.00019178,2]
[315058873,1708796813397,-500.0,0.00019178,2]
[315058874,1708796813417,-500.0,0.00019178,2]
[315058875,1708796813438,-974.70014724,0.00019178,2]
[315058915,1708797034401,-154.9690062,0.00019173,2]
[315058916,1708797034411,-281.345214,0.00019174,2]
[315058917,1708797034421,-500.0,0.00019178,2]
[315058918,1708797034430,-150.0,0.00019178,2]
[315058919,1708797034439,-500.0,0.00019178,2]
[315058920,1708797034448,-500.0,0.00019178,2]
[315058921,1708797034457,-534.01,0.00019178,2]
[315058922,1708797034467,-500.0,0.00019178,2]
[315058923,1708797034476,-500.0,0.00019178,2]
[315058924,1708797034485,-997.34,0.00019178,2]
[315058925,1708797034494,-574.41,0.00019178,2]
[315058927,1708797034503,-500.0,0.00019178,2]
[315058929,1708797034512,-500.0,0.00019178,2]
[315058931,1708797034521,-500.0,0.00019178,2]
[315058933,1708797034530,-644.04663569,0.00019178,2]
[315058935,1708797034544,-500.0,0.00019178,2]
[315058936,1708797034553,-559.01,0.00019178,2]
[315058937,1708797034563,-638.57,0.00019178,2]
[315058938,1708797034573,-500.0,0.00019178,2]
[315058940,1708797034583,-500.0,0.00019178,2]
[315058942,1708797034593,-644.3,0.00019178,2]
[315058944,1708797034603,-500.0,0.00019178,2]
[315058946,1708797034612,-253.01436056,0.00019178,2]
[315058947,1708797034621,-713.63,0.00019178,2]
[315058948,1708797034631,-333.80192593,0.00019178,2]
[315058949,1708797034644,-674.85999156,0.00019178,2]
[315059065,1708797039652,-704.04980982,0.00019172,2]
[315059066,1708797039661,-965.15828232,0.00019178,2]
[315059067,1708797039672,-685.49330367,0.00019178,2]
[315059068,1708797039753,-633.16649652,0.00019178,2]
[315059069,1708797039762,-500.0,0.00019178,2]
[315059070,1708797039771,-500.0,0.00019178,2]
[315059071,1708797039780,-1108.84,0.00019178,2]
[315059072,1708797039790,-500.0,0.00019178,2]
[315059073,1708797039798,-755.17,0.00019178,2]
[315059074,1708797039807,-500.0,0.00019178,2]
[315059075,1708797039816,-500.0,0.00019178,2]
[315059076,1708797039824,-924.56,0.00019178,2]
[315059077,1708797039833,-500.0,0.00019178,2]
[315059078,1708797039842,-1624.67,0.00019178,2]
[315059079,1708797039850,-500.0,0.00019178,2]
[315059080,1708797039859,-1070.74,0.00019178,2]
[315059081,1708797039868,-500.0,0.00019178,2]
[315059082,1708797039877,-756.52,0.00019178,2]
[315059083,1708797039886,-1444.81,0.00019178,2]
[315059084,1708797039894,-500.0,0.00019178,2]
[315059085,1708797039903,-500.0,0.00019178,2]
[315059086,1708797039912,-500.0,0.00019178,2]
[315059087,1708797039920,-660.55,0.00019178,2]
[315059088,1708797039929,-500.0,0.00019178,2]
[315059089,1708797039938,-1698.5,0.00019178,2]
[315059090,1708797039947,-722.34,0.00019178,2]
[315059091,1708797039955,-7959.91,0.00019178,2]
[315059092,1708797039964,-500.0,0.00019178,2]
[315059093,1708797039973,-6758.25,0.00019178,2]
[315059094,1708797039981,-500.0,0.00019178,2]
[315059095,1708797039990,-500.0,0.00019178,2]
[315059096,1708797039999,-500.0,0.00019178,2]
[315059097,1708797040008,-500.0,0.00019178,2]
[315059098,1708797040016,-500.0,0.00019178,2]
[315059099,1708797040025,-500.0,0.00019178,2]
[315059100,1708797040034,-500.0,0.00019178,2]
[315059101,1708797040044,-500.0,0.00019178,2]
[315059102,1708797040054,-500.0,0.00019178,2]
[315059103,1708797040063,-500.0,0.00019178,2]
[315059104,1708797040072,-1696.47,0.00019178,2]
[315059105,1708797040081,-500.0,0.00019178,2]
[315059106,1708797040090,-500.0,0.00019178,2]
[315059107,1708797040098,-500.0,0.00019178,2]
[315059108,1708797040107,-648.83,0.00019178,2]
[315059109,1708797040116,-500.0,0.00019178,2]
[315059111,1708797040125,-530.69,0.00019178,2]
[315059112,1708797040135,-294.39801914,0.00019178,2]
[315059114,1708797040144,-500.0,0.00019178,2]
[315059116,1708797040155,-500.0,0.00019178,2]
[315059117,1708797040164,-5173.66,0.00019178,2]
[315059119,1708797040172,-500.0,0.00019178,2]
[315059120,1708797040182,-500.0,0.00019178,2]
[315059121,1708797040191,-500.0,0.00019178,2]
[315059122,1708797040202,-339.49103942,0.00019178,2]
[315059123,1708797040211,-500.0,0.00019178,2]
[315059124,1708797040220,-2018.1,0.00019178,2]
[315059125,1708797040231,-521.26886401,0.00019178,2]
[315059126,1708797040242,-500.0,0.00019178,2]
[315059127,1708797040251,-166.666666,0.00019178,2]
[315059128,1708797040260,-173.716806,0.00019178,2]
[315059129,1708797040270,-196.01976371,0.00019215,2]
[315059130,1708797040279,-37658.52,0.00019269,3]
[315059131,1708797040289,-644.93,0.00019279,3]
[315059132,1708797040298,-214.97,0.00019289,3]
[315059133,1708797040308,-500.0,0.00019298,2]
[315059134,1708797040317,-500.0,0.00019298,2]
[315059135,1708797040326,-500.0,0.00019298,2]
[315059136,1708797040336,-500.0,0.00019298,2]
[315059137,1708797040345,-3871.6183292,0.00019298,2]
[315059138,1708797040354,-500.0,0.00019298,2]
[315059139,1708797040363,-500.0,0.00019298,2]
[315059140,1708797040372,-500.0,0.00019298,2]
[315059141,1708797040381,-500.0,0.00019298,2]
[315059142,1708797040390,-3871.6183292,0.00019298,2]
[315059143,1708797040400,-500.0,0.00019298,2]
[315059144,1708797040409,-500.0,0.00019298,2]
[315059145,1708797040419,-503.01305684,0.00019298,2]
[315059146,1708797040428,-500.0,0.00019298,2]
[315059147,1708797040437,-500.0,0.00019298,2]
[315059148,1708797040447,-500.0,0.00019298,2]
[315059149,1708797040456,-3871.6183292,0.00019298,2]
[315059150,1708797040465,-500.0,0.00019298,2]
[315059151,1708797040474,-500.0,0.00019298,2]
[315059152,1708797040484,-500.0,0.00019298,2]
[315059153,1708797040493,-500.0,0.00019298,2]
[315059154,1708797040502,-500.0,0.00019298,2]
[315059155,1708797040511,-500.0,0.00019298,2]
[315059156,1708797040520,-500.0,0.00019298,2]
[315059157,1708797040529,-3871.6183292,0.00019298,2]
[315059158,1708797040539,-500.0,0.00019298,2]
[315059159,1708797040549,-500.0,0.00019298,2]